Cogmind - Beta 16.1 @@@ ROGUE MODE // 2026.04.22 @ 15:14:51 Player: coopco Result: Destroyed by G-47 Trooper with Particle Gun Performance ------------- Evolutions (3) 1500 Regions Visited (9) 1800 Robots Destroyed (58) 290 Value Destroyed (2722) 2722 Prototype IDs (32) 640 Alien Tech Used (0) 0 Bonus (1297) 1297 TOTAL SCORE: 8249 Bonus ------- High Alert Combat Kills 97 Entered Garrisons 200 Used RIF Installer 500 Entered DSFs 500 Cogmind --------- Core Integrity 0/700 Matter 200/300 Energy 276/300 System Corruption 5% Temperature Cool (31) Movement Hovering (217) Ox2 Location -7/DSF Parts ------- > --- POWER (1) -------- Angular Momentum Engine > --- PROPULSION (3) --- Combat Airjet Combat Airjet > --- UTILITY (6) ------ Improved Heat Sink High-capacity Storage Unit Relay Coupler [Specialist] (4) > --- WEAPON (3) ------- Plasma Cannon > --- INVENTORY (20) --- Light Deuterium Engine Light Nuclear Core Angular Momentum Engine Hacking Suite Hacking Suite System Shield System Shield Authchip [R/Combat] Relay Coupler [NC] (25) Relay Coupler [Grunt] (31) Relay Coupler [Brawler] (23) Relay Coupler [Sentry] (22) Improved Datajack Peak State ------------ > --- POWER ------------ Nuclear Core > --- PROPULSION ------- Aerolev Unit Combat Airjet Combat Airjet > --- UTILITY ---------- Medium Storage Unit Improved Sensor Array Improved Signal Interpreter Hacking Suite > --- WEAPON ----------- AWS/Gauss Makeshift Sword > --- INVENTORY -------- Light Angular Momentum Engine Carbon-fiber Leg Improved Titanium Leg Makeshift Leg Advanced Weight Redist. System Improved Sensor Array Hardened Medium Armor Plating Hacking Suite System Shield Makeshift Laser [Rating: 50] Favorites ----------- Power Light Nuclear Core Engine Light Angular Momentum Engine Power Core Light Nuclear Core Propulsion Carbon-fiber Leg Leg Carbon-fiber Leg Hover Unit Combat Airjet Utility Improved Signal Interpreter Device Improved Sensor Array Storage Medium Storage Unit Processor Improved Signal Interpreter Hackware Hacking Suite Protection Hardened Medium Armor Plating Weapon AWS/Gauss Energy Gun Medium Laser Energy Cannon Plasma Cannon Ballistic Gun AWS/Gauss Launcher Grenade Launcher Impact Weapon Heavy Flail Slashing Weapon Makeshift Sword Special Melee Weapon Improved Datajack Build | -11 -10 -10 -10 -9 -8 -8 -8 -7 -7 ------- Run | Yrd Mat Min Exi Min Mat Gar Mat Fac DSF Slots Evolved 6 | . . . . . 4 . . 2 . Power . | . . . . . . . . . . Propulsion 1 | . . . . . 1 . . . . Utility 4 | . . . . . 2 . . 2 . Weapon 1 | . . . . . 1 . . . . Parts Attached 71 | 6 8 . 8 3 7 8 14 2 15 Power 11 | 1 2 . 1 1 1 2 1 1 1 Engine 5 | 1 2 . . . . . 1 . 1 Core 6 | . . . 1 1 1 2 . 1 . Reactor . | . . . . . . . . . . Propulsion 21 | 2 2 . 2 2 1 4 4 . 4 Treads . | . . . . . . . . . . Leg 18 | 2 2 . 2 2 1 1 4 . 4 Wheel . | . . . . . . . . . . Hover 3 | . . . . . . 3 . . . Flight . | . . . . . . . . . . Utility 17 | 1 1 . 3 . 4 2 3 1 2 Device 5 | . . . . . 1 . 2 1 1 Storage 5 | 1 . . 2 . 1 1 . . . Processor 4 | . 1 . 1 . 1 . 1 . . Hackware 2 | . . . . . 1 . . . 1 Protection 1 | . . . . . . 1 . . . Artifact . | . . . . . . . . . . Weapon 22 | 2 3 . 2 . 1 . 6 . 8 Energy Gun 8 | 1 1 . . . . . 2 . 4 Energy Cannon 3 | . . . . . . . . . 3 Ballistic Gun 5 | 1 1 . 2 . . . 1 . . Ballistic Cannon . | . . . . . . . . . . Launcher 2 | . 1 . . . . . . . 1 Special Weapon . | . . . . . . . . . . Impact Weapon 1 | . . . . . . . 1 . . Slashing Weapon 2 | . . . . . 1 . 1 . . Piercing Weapon . | . . . . . . . . . . Special Melee Weapon 1 | . . . . . . . 1 . . Unidentified Prototypes 3 | . . . . . . 1 1 . 1 Parts Lost 27 | . 1 . . 2 . . 3 . 21 Power 4 | . 1 . . 1 . . 1 . 1 Propulsion 8 | . . . . 1 . . 1 . 6 Utility 5 | . . . . . . . 1 . 4 Weapon 10 | . . . . . . . . . 10 Highest Loss Streak 10 | . 1 . . 1 . . 1 . 10 To Critical Strikes . | . . . . . . . . . . Average Backups 11 | 3 7 7 7 9 9 12 18 19 17 Power 1 | . 2 1 1 . 1 1 1 2 3 Propulsion 2 | 2 2 2 2 3 2 3 2 3 2 Utility 4 | . . 2 1 . 3 7 9 10 9 Weapon 2 | . 1 2 2 4 1 . 2 3 1 Tool/Special . | . . . . . . . . . . Unused Backups 28 | . 3 2 2 . 3 2 3 . 13 Power 7 | . 1 . . . 2 . 1 . 3 Propulsion 3 | . 2 . 1 . . . . . . Utility 14 | . . 2 . . 1 1 1 . 9 Weapon 2 | . . . 1 . . 1 . . . Tool/Special 2 | . . . . . . . 1 . 1 Average Slot Usage (%) 92 | . 96 100 98 85 87 90 98 88 73 Engine 3 | . 14 14 1 . . . 8 1 . Core 7 | . . . 12 14 9 9 . 5 6 Leg 26 | . 28 28 28 28 27 24 27 23 15 Device 3 | . . . . . 7 1 6 11 11 Storage 11 | . 14 14 14 14 9 9 9 7 7 Processor 10 | . 10 14 14 14 9 9 9 7 4 Hackware 4 | . . . . . 8 9 9 7 7 Protection 1 | . . . . . . 7 1 . . Energy Gun 6 | . 14 14 12 . . . 8 . 8 Ballistic Gun 9 | . 13 14 14 14 9 9 4 7 1 Slashing Weapon 3 | . . . . . 7 9 5 . . Special Melee Weapon 1 | . . . . . . . 6 7 1 Peak Build Rating 50 | 6 8 8 30 31 47 50 49 44 49 Average Rating 31 | 3 7 8 14 30 45 48 42 42 38 On Entrance 26 | . 6 8 8 30 31 47 49 41 44 Avg Prop Armor Cover (%) . | . . . . . . . . . . Naked Turns . | . . . . . . . . . . Heaviest Build 66 | 11 15 14 25 25 30 65 65 58 66 Greatest Support 55 | 20 20 20 35 35 55 55 55 45 50 Greatest Overweight (x) 5 | 3 . . 1 . . 1 1 1 5 Average Overweight (x) . | 1 . . . . . . . 1 1 Largest Inventory Capacity 20 | 8 8 8 10 10 10 20 20 20 20 Average Capacity 12 | 6 8 8 9 10 10 15 20 20 20 Most Carried 20 | 6 8 8 10 10 10 15 20 20 20 Average Carried 11 | 4 7 7 8 9 9 12 19 20 17 Final Capacity 20 | 8 8 8 10 10 10 20 20 20 20 Final Carried 20 | 4 8 8 9 10 10 15 20 20 13 Class Distribution -------------------- 58% | Mutant 20% | Scavenger-Mutant 19% | Bothacker-Mutant Dominant Class ---------------- Mutant | -10/Materials Mutant | -10/Mines Scavenger-Mutant | -10/Exiles Mutant | -9/Mines Mutant | -8/Materials Mutant | -8/Garrison Bothacker-Mutant | -8/Materials Bothacker-Mutant | -7/Factory Bothacker-Mutant | -7/DSF Resources | -11 -10 -10 -10 -9 -8 -8 -8 -7 -7 ----------- Run | Yrd Mat Min Exi Min Mat Gar Mat Fac DSF Matter Collected 1156 | 260 146 . 115 266 20 110 75 . 164 Remotely . | . . . . . . . . . . Salvage Created 2832 | . 342 . 137 385 115 1165 360 . 328 Parts 126 | . 26 . 9 8 5 54 13 . 11 Haulers Intercepted . | . . . . . . . . . . Recyclers Shooed . | . . . . . . . . . . Parts Field Recycled . | . . . . . . . . . . Retrieved Matter . | . . . . . . . . . . Parts Self-Destructed . | . . . . . . . . . . Prevented . | . . . . . . . . . . Parts Restored . | . . . . . . . . . . Kills | -11 -10 -10 -10 -9 -8 -8 -8 -7 -7 ------- Run | Yrd Mat Min Exi Min Mat Gar Mat Fac DSF Combat Hostiles Destroyed 71 | . 10 . . 19 2 24 8 . 8 Melee 8 | . . . . . . 6 2 . . Guns 54 | . 10 . . 17 2 18 5 . 2 Cannons 1 | . . . . . . . . . 1 AOE 6 | . . . . 2 . . . . 4 Classes Destroyed 8 | . 3 . . 2 1 1 . . 1 Builder 1 | . 1 . . . . . . . . Swarmer 13 | . 3 . . . . 8 2 . . Grunt 28 | . 7 . . 3 . 11 4 . 3 Sentry 6 | . . . . . 2 2 1 . 1 Demolisher 2 | . . . . 2 . . . . . Specialist 4 | . . . . . . . . . 4 Hunter 4 | . . . . . . 3 1 . . Assembled 14 | . . . . 14 . . . . . Best Kill Streak 16 | . 3 . . 16 1 14 3 . 4 Combat Bots Only 16 | . 3 . . 16 1 14 3 . 4 Max Kills in Single Turn 2 | . 2 . . 2 1 2 1 . 2 Gunslinging 1 | . 1 . . . . . . . . Exploded 2 | . . . . 2 . . . . 2 Melee 1 | . . . . . . 1 1 . . Uniques/NPCs Destroyed . | . . . . . . . . . . Combat | -11 -10 -10 -10 -9 -8 -8 -8 -7 -7 -------- Run | Yrd Mat Min Exi Min Mat Gar Mat Fac DSF Hostile Shots Fired 416 | . 37 . . 34 12 90 68 . 175 Missed 128 | . 10 . . 14 5 30 20 . 49 Hits 288 | . 27 . . 20 7 60 48 . 126 Projectile 288 | . 27 . . 20 7 60 48 . 126 AOE 5 | . . . . 5 . . . . . Critical Strikes 7 | . . . . . . 1 1 . 5 Part Disruptions 1 | . . . . . . . 1 . . Damage Taken 5173 | . 330 . . 506 101 775 704 . 2757 Core 1131 | . 77 . . 122 14 57 151 . 710 Absorbed by Shields 24 | . . . . . . 24 . . . Regen/Repaired (Parts) 85 | . . . . . 85 . . . . Core Remaining (%) 59 | 100 . . . 20 . . 59 . . Volleys Fired 114 | . 32 . 29 . . . 26 . 27 Largest 3 | . 2 . 2 . . . 2 . 3 Hottest 185 | . 70 . 70 . . . 130 . 185 Shots Fired 330 | . 61 . 31 48 6 98 44 . 42 Gun 305 | . 58 . 31 48 6 98 44 . 20 Cannon 17 | . . . . . . . . . 17 Launcher 8 | . 3 . . . . . . . 5 Special . | . . . . . . . . . . Kinetic 189 | . 29 . 5 48 6 98 . . 3 Thermal 122 | . 21 . 26 . . . 44 . 31 Explosive 8 | . 3 . . . . . . . 5 Electromagnetic 11 | . 8 . . . . . . . 3 Robot Hit Streak 17 | . 13 . 9 14 7 17 9 . 14 Robot Miss Streak 4 | . 4 . 1 3 . 4 1 . 2 Penetration Max . | . . . . . . . . . . Secondary Targets 1 | . 1 . . . . . . . . Max Gunslinging Chain 1 | . 1 . . . . . . . . Autonomous 153 | . . . . 48 6 99 . . . Shots Hit Robots 282 | . 38 . 26 34 7 104 31 . 42 Core Hits 113 | . 21 . 6 19 2 35 12 . 18 Critical Kills 1 | . . . . . . 1 . . . Critical Parts Destroyed 2 | . . . . . . . . . 2 Critical Strikes 12 | . 1 . . . . 4 5 . 2 Burn 6 | . 1 . . . . . 5 . . Destroy 1 | . . . . . . 1 . . . Smash 2 | . . . . . . . . . 2 Sever 3 | . . . . . . 3 . . . Melee Attacks 96 | . . . . . 23 44 14 2 13 Impact 14 | . . . . . . . 2 2 10 Slashing 79 | . . . . . 23 44 12 . . Piercing . | . . . . . . . . . . Sneak Attacks . | . . . . . . . . . . Combat Hostiles . | . . . . . . . . . . Follow-up Attacks . | . . . . . . . . . . Damage Inflicted 7766 | . 526 . 335 1148 206 3334 619 . 1598 Guns 4973 | . 466 . 335 1148 169 1950 511 . 394 Cannons 332 | . . . . . . . . . 332 Explosions 679 | . 60 . . . . . . . 619 Melee 1782 | . . . . . 37 1384 108 . 253 Ramming . | . . . . . . . . . . Kinetic 3596 | . 243 . 24 1148 169 1950 . . 62 Thermal 1593 | . 159 . 311 . . . 511 . 612 Explosive 644 | . 25 . . . . . . . 619 Electromagnetic 151 | . 99 . . . . . . . 52 Impact 253 | . . . . . . . . . 253 Slashing 1529 | . . . . . 37 1384 108 . . Piercing . | . . . . . . . . . . Highest Corruption 5 | . 1 1 1 1 . . . . 5 Average Corruption 1 | . 1 1 1 1 . . . . 5 Corruption Purged . | . . . . . . . . . . Corruption Blocked . | . . . . . . . . . . Effects 21 | . 1 1 7 3 . . . . 9 Message Errors 9 | . 1 1 3 2 . . . . 2 Matter Fused 3 | . . . 1 . . . . . 2 Energy Discharges 2 | . . . 1 1 . . . . . Parts Rejected 1 | . . . . . . . . . 1 Data Loss (minor) 4 | . . . 1 . . . . . 3 Data Loss (major) 1 | . . . . . . . . . 1 Alerts 1 | . . . 1 . . . . . . Overload Shots . | . . . . . . . . . . Overflow Damage 168 | . 1 . . . . 36 30 . 101 Projectiles . | . . . . . . . . . . Explosions 1 | . 1 . . . . . . . . Melee 167 | . . . . . . 36 30 . 101 Knockbacks . | . . . . . . . . . . Impact . | . . . . . . . . . . Kinetic . | . . . . . . . . . . Secondary . | . . . . . . . . . . Self-Inflicted Damage 22 | . 22 . . . . . . . . Shots 1 | . 1 . . . . . . . . Rammed . | . . . . . . . . . . Targets Rammed . | . . . . . . . . . . Kicked . | . . . . . . . . . . Crushed . | . . . . . . . . . . Highest Temperature 385 | . 96 . 254 2 . 19 385 . 84 Average Temperature 89 | . 36 . 102 2 . 8 129 . 35 Received Heat Transfer 1043 | . 141 . . 50 45 225 333 . 249 Effects 6 | . . . 1 . . . 5 . . Shutdowns 1 | . . . . . . . 1 . . Energy Bleed 2 | . . . 1 . . . 1 . . Interference 3 | . . . . . . . 3 . . Siege Activations . | . . . . . . . . . . Martial Activations . | . . . . . . . . . . Shielding Activations . | . . . . . . . . . . Robots Disrupted . | . . . . . . . . . . Combat Hostiles . | . . . . . . . . . . Robots Corrupted 1 | . . . . . . . . . 1 Combat Hostiles 1 | . . . . . . . . . 1 Parts Fried . | . . . . . . . . . . Impact Corruptions 2 | . . . . . . . . . 2 Robots Melted 1 | . . . . . . . 1 . . Combat Hostiles 1 | . . . . . . . 1 . . Parts Melted 5 | . 1 . 1 . . . 1 . 2 Heat Transferred 3943 | . 555 . 925 . . . 1406 . 1057 Parts Sabotaged . | . . . . . . . . . . Parts Stolen . | . . . . . . . . . . Parts Stripped . | . . . . . . . . . . Power Chain Reactions 1 | . 1 . . . . . . . . Alert | -11 -10 -10 -10 -9 -8 -8 -8 -7 -7 ------- Run | Yrd Mat Min Exi Min Mat Gar Mat Fac DSF Maximum Alert Level 3 | . . . . . . 3 1 . . Low Security (%) 74 | 100 100 100 . 100 100 25 43 100 100 Level 1 13 | . . . . . . 2 56 . . Level 2 9 | . . . . . . 55 . . . Level 3 2 | . . . . . . 16 . . . Level 4 . | . . . . . . . . . . Level 5 . | . . . . . . . . . . High Security . | . . . . . . . . . . Max Security . | . . . . . . . . . . Sterilizations 1 | . . . . . . . . . 1 Peak Influence 727 | . 115 8 . 85 33 727 396 6 123 Initial 354 | . . 8 . . . . 354 6 2 Average 145 | . 39 1 . 17 6 496 211 . 30 Influence Increases 1933 | . 328 . 5 147 205 727 286 6 229 Destroy 0b10 Robot/C 1140 | . 200 . . 100 40 480 160 . 160 Destroy 0b10 Robot/NC 20 | . 5 . 5 . . 10 . . . Destroy Leader 170 | . 40 . . 20 20 30 40 . 20 Trap Triggered on 0b10 30 | . . . . . 30 . . . . Successful Hack 79 | . 5 . . . 53 . 17 4 . Disable Machine 150 | . 60 . . . 30 30 15 . 15 Anti-Garrison Action 100 | . . . . . . 100 . . . Destroy Structure 124 | . 18 . . 27 17 32 9 2 19 Partial Spotted 15 | . . . . . . . 15 . . Lose Combat Pursuer 105 | . . . . . 15 45 30 . 15 Influence Decreases 1870 | . 306 22 5 147 205 . 999 16 170 Entered New Map 397 | . . 14 . . . . 373 8 2 Time Decay 1100 | . 296 8 5 132 205 . 446 8 . Lost Part 205 | . 10 . . 15 . . 30 . 150 Lost Ally 18 | . . . . . . . . . 18 Purge Threat 150 | . . . . . . . 150 . . Squads Dispatched 8 | . 1 . . 1 1 . 1 1 3 Investigation 2 | . . . . 1 . . . 1 . Extermination . | . . . . . . . . . . Reinforcement 6 | . 1 . . . 1 . 1 . 3 Assault . | . . . . . . . . . . Garrison . | . . . . . . . . . . Intercept . | . . . . . . . . . . Searches Triggered . | . . . . . . . . . . Construction Impeded . | . . . . . . . . . . Haulers Reinforced . | . . . . . . . . . . Active Scanning Responses . | . . . . . . . . . . Cargo Convoy Interrupts . | . . . . . . . . . . Stealth | -11 -10 -10 -10 -9 -8 -8 -8 -7 -7 --------- Run | Yrd Mat Min Exi Min Mat Gar Mat Fac DSF Distress Signals 2 | . . . . . 1 . 1 . . Communications Jammed . | . . . . . . . . . . Distress Signals . | . . . . . . . . . . Times Spotted 109 | . 18 . . 20 12 27 15 . 17 Peak Tracking Total 12 | . 3 . . 12 4 10 4 . 6 Tactical Retreats 4 | . . . . . 1 1 1 . 1 Traps | -11 -10 -10 -10 -9 -8 -8 -8 -7 -7 ------- Run | Yrd Mat Min Exi Min Mat Gar Mat Fac DSF Traps Triggered 6 | . 1 . . . . 2 2 1 . Indirectly . | . . . . . . . . . . Trap Hack Attempts . | . . . . . . . . . . Triggered . | . . . . . . . . . . Disarmed . | . . . . . . . . . . Reprogrammed 4 | . . . . . 4 . . . . Reused 4 | . . . . 1 3 . . . . Traps Extracted . | . . . . . . . . . . Installed 1 | . . . . 1 . . . . . Triggered 3 | . . . . . 3 . . . . Most Traps Carried 2 | . . 2 2 1 . . . . . Machines | -11 -10 -10 -10 -9 -8 -8 -8 -7 -7 ---------- Run | Yrd Mat Min Exi Min Mat Gar Mat Fac DSF Machines Disabled 12 | . 4 . . . 2 4 1 . 1 Max in Single Turn 2 | . 2 . . . 1 1 1 . 1 Garrison Relay 2 | . . . . . . 2 . . . Machines Repaired . | . . . . . . . . . . Machines Dismantled . | . . . . . . . . . . Machines Sabotaged . | . . . . . . . . . . Overloaded Fab Kills . | . . . . . . . . . . Hacking | -11 -10 -10 -10 -9 -8 -8 -8 -7 -7 --------- Run | Yrd Mat Min Exi Min Mat Gar Mat Fac DSF Machines Accessed 26 | . 3 . 5 1 8 1 7 1 . Terminals 15 | . 2 . . . 5 1 6 1 . Fabricators . | . . . . . . . . . . Repair Stations 1 | . . . . . 1 . . . . Recycling Units 2 | . 1 . . . . . 1 . . Scanalyzers 1 | . . . . . 1 . . . . Garrison Access 1 | . . . . . 1 . . . . Total Hacks 117 | . 8 . 50 1 36 1 20 1 . Successful 88 | . 6 . 50 1 22 . 8 1 . Failed 28 | . 2 . . . 13 1 12 . . Catastrophic 1 | . . . . . . . 1 . . Database Lockouts 1 | . . . . . 1 . . . . Manual 32 | . 1 . 5 . 16 . 10 . . Terminals 53 | . 6 . . . 28 1 17 1 . Fabricators . | . . . . . . . . . . Repair Stations 2 | . . . . . 2 . . . . Recycling Units 5 | . 2 . . . . . 3 . . Scanalyzers 3 | . . . . . 3 . . . . Garrison Access 3 | . . . . . 3 . . . . Terminal Hacks 75 | . 3 . 50 1 14 . 6 1 . Record 51 | . . . 49 . . . 2 . . Part Schematic 1 | . . . . . 1 . . . . Robot Analysis 1 | . 1 . . . . . . . . Prototype ID Bank 3 | . 1 . . . 2 . . . . Open Door 1 | . . . . 1 . . . . . Open DSF 1 | . . . . . . . . 1 . Level Access Points 1 | . . . . . 1 . . . . Branch Access Points 1 | . . . . . 1 . . . . Emergency Access Points 2 | . . . . . 2 . . . . Terminal Index 2 | . . . . . 1 . 1 . . Repair Station Index 1 | . . . . . . . 1 . . Garrison Index 1 | . . . . . 1 . . . . Alert Level 2 | . . . . . 1 . 1 . . Unreport Threat 1 | . . . . . . . 1 . . Locate Traps 1 | . 1 . . . . . . . . Reprogram Traps 1 | . . . . . 1 . . . . Dispatch Records 1 | . . . . . 1 . . . . Recall Investigation 1 | . . . . . 1 . . . . Hauler Manifests 1 | . . . . . 1 . . . . Proto ID Catalog 1 | . . . 1 . . . . . . Fabricator Hacks . | . . . . . . . . . . Repair Station Hacks 2 | . . . . . 2 . . . . Scan Component 1 | . . . . . 1 . . . . Repair 1 | . . . . . 1 . . . . Recycling Unit Hacks 3 | . 2 . . . . . 1 . . Report Inventory 2 | . 1 . . . . . 1 . . Retrieve Components 1 | . 1 . . . . . . . . Scanalyzer 2 | . . . . . 2 . . . . Retrieve Study 2 | . . . . . 2 . . . . Garrison Access Hacks 2 | . . . . . 2 . . . . Unlock Access 1 | . . . . . 1 . . . . Coupler Status 1 | . . . . . 1 . . . . Unauthorized Hacks 4 | . 1 . . . 2 . 1 . . Terminals 4 | . 1 . . . 2 . 1 . . Assimilate 2 | . 1 . . . . . 1 . . Botnet 2 | . . . . . 2 . . . . Fabricators . | . . . . . . . . . . Repair Stations . | . . . . . . . . . . Recycling Units . | . . . . . . . . . . Scanalyzers . | . . . . . . . . . . Garrison Access . | . . . . . . . . . . Data Cores Recovered . | . . . . . . . . . . Used . | . . . . . . . . . . Hacking Detections 18 | . 2 . . . 7 1 7 1 . Full Trace Events . | . . . . . . . . . . Feedback Events . | . . . . . . . . . . Feedback Blocked . | . . . . . . . . . . Robot Schematics Acquired . | . . . . . . . . . . Robots Built . | . . . . . . . . . . Authchips . | . . . . . . . . . . Time . | . . . . . . . . . . Total Robot Build Rating . | . . . . . . . . . . Part Schematics Acquired 1 | . . . . . 1 . . . . Parts Built . | . . . . . . . . . . Authchips . | . . . . . . . . . . Time . | . . . . . . . . . . Total Part Build Rating . | . . . . . . . . . . Part Studies Acquired 1 | . . . . . 1 . . . . Parts Repaired 1 | . . . . . 1 . . . . Time 44 | . . . . . 44 . . . . Parts Recycled . | . . . . . . . . . . Recycled Matter . | . . . . . . . . . . Retrieved Matter . | . . . . . . . . . . Retrieved Components 3 | . 3 . . . . . . . . Parts Scanalyzed . | . . . . . . . . . . Part Schematics Acquired . | . . . . . . . . . . Parts Damaged . | . . . . . . . . . . Bothacking | -11 -10 -10 -10 -9 -8 -8 -8 -7 -7 ------------ Run | Yrd Mat Min Exi Min Mat Gar Mat Fac DSF Used RIF Installer 1 | . . . . . . 1 . . . Robots Hacked 2 | . . . . . . . . . 2 Non-combat . | . . . . . . . . . . Combat 2 | . . . . . . . . . 2 Robot Hacks Applied 2 | . . . . . . . . . 2 disable_weapons 1 | . . . . . . . . . 1 formatsys_high 1 | . . . . . . . . . 1 Relay Couplers Released 10 | . . . . . . 10 . . . Machine Destruction 10 | . . . . . . 10 . . . Attached 1 | . . . . . . . . . 1 Fabnet Peak Effective % . | . . . . . . . . . . Robots Rewired 3 | . . . 3 . . . . . . Allies Hacked . | . . . . . . . . . . Hacks Repelled . | . . . . . . . . . . Allies | -11 -10 -10 -10 -9 -8 -8 -8 -7 -7 -------- Run | Yrd Mat Min Exi Min Mat Gar Mat Fac DSF Total Allies 4 | . . . 3 . . . . . 1 Largest Group 3 | . . . 3 3 . . . . . Highest-Rated Group 37 | . . . 37 37 . . . . . Highest-Rated Ally 21 | . . . 21 21 . . . . . Total Orders . | . . . . . . . . . . Ally Attacks 11 | . . . . 11 . . . . . Total Damage 137 | . . . . 137 . . . . . Kills 2 | . . . . 2 . . . . . Allies Corrupted . | . . . . . . . . . . Allies Melted . | . . . . . . . . . . Intel | -11 -10 -10 -10 -9 -8 -8 -8 -7 -7 ------- Run | Yrd Mat Min Exi Min Mat Gar Mat Fac DSF Active Infowar (turns) 3111 | . 582 140 227 . 852 95 790 147 278 Sensors 2162 | . . . . . 852 95 790 147 278 T.N.C. 949 | . 582 140 227 . . . . . . Robot Analysis Total 1 | . 1 . . . . . . . . Derelict Logs Recovered 1 | . . . . 1 . . . . . Drone Launches . | . . . . . . . . . . Drone Recoveries . | . . . . . . . . . . Exploration | -11 -10 -10 -10 -9 -8 -8 -8 -7 -7 ------------- Run | Yrd Mat Min Exi Min Mat Gar Mat Fac DSF Turns Passed 6162 | 69 763 140 1179 584 966 873 1110 147 331 Spaces Moved 3674 | 46 509 115 731 441 661 496 506 77 92 Core 39 | 39 . . . . . . . . . Treads . | . . . . . . . . . . Legs 3541 | 7 509 115 731 441 661 409 506 77 85 Wheels . | . . . . . . . . . . Hover 94 | . . . . . . 87 . . 7 Flight . | . . . . . . . . . . Fastest Speed 50 | 50 120 120 120 130 123 63 125 175 175 Average Speed 144 | 120 120 120 147 130 128 149 186 175 195 Slowest Speed 470 | 200 120 120 190 130 130 195 205 175 470 Overloaded Moves . | . . . . . . . . . . Propulsion Burnouts . | . . . . . . . . . . Robots Hopped . | . . . . . . . . . . Potential Cave-ins 2 | . . . . . 2 . . . . Cave-ins Triggered 1 | . . . . . . . . . 1 Exploration Rate (%) 51 | 4 70 40 93 92 49 57 42 5 66 Regions Visited 9 Branch Regions 3 Pre-discovered Areas 1 | . . . 1 . . . . . . Known Exits Taken 5 | . . . 1 1 1 . 1 1 . Unknown Exits Taken 3 | 1 1 1 . . . . . . . Scrap Searched 1 | . . . . 1 . . . . . Spaces Dug 49 | . 14 . . . 18 5 9 2 1 Terrain Destroyed 134 | . 20 . . 40 21 15 9 2 27 Melee 35 | . . . . . 18 5 9 2 1 Projectile 53 | . . . . 40 3 10 . . . AOE 46 | . 20 . . . . . . . 26 Terrain Rammed . | . . . . . . . . . . Walls Destroyed . | . . . . . . . . . . Machines Disabled . | . . . . . . . . . . Actions | -11 -10 -10 -10 -9 -8 -8 -8 -7 -7 --------- Run | Yrd Mat Min Exi Min Mat Gar Mat Fac DSF Total 4256 | 57 601 118 800 453 758 585 614 86 184 Wait 141 | . 32 . . . 45 3 31 5 25 Move 3666 | 45 508 114 730 440 661 495 505 76 92 Hop . | . . . . . . . . . . Pick Up 72 | 6 10 2 9 6 10 10 13 . 6 Fast Attach 27 | 4 4 . 2 . 3 . 4 2 8 Attach 25 | 2 1 . 1 3 3 1 4 . 10 Detach 1 | . . . . . . . 1 . . Swap 32 | . 6 . 5 . 4 10 6 . 1 Drop 54 | . 8 2 11 3 9 8 10 1 2 Fire 114 | . 32 . 29 . . . 26 . 27 Melee 96 | . . . . . 23 44 14 2 13 Ram . | . . . . . . . . . . Kick . | . . . . . . . . . . Crush . | . . . . . . . . . . Escape Stasis 14 | . . . . . . 14 . . . Rewire 13 | . . . 13 . . . . . . Trap 1 | . . . . 1 . . . . . Miscellaneous . | . . . . . . . . . . Route ------- -11/Scrapyard -10/Materials (discovered 3 exits: [*Mat x2] / [*Min]) -10/Mines -10/Exiles (discovered 2 exits: *Min x2) -9/Mines (discovered 2 exits: *Mat x2) -8/Materials (discovered 4 exits: Fac x3 / Gar) -8/Garrison (discovered 3 exits: *Mat x3) -8/Materials -7/Factory -7/DSF History --------- Turn | Location | Event 13 | -11/Scrapyard | Discovered new exit (range 15) 70 | -11/Scrapyard | Entered Materials 242 | -10/Materials | Discovered new exit (range 8) 316 | -10/Materials | Build established: Mutant 398 | -10/Materials | Discovered new exit (range 16) 680 | -10/Materials | Discovered new exit (range 3) 833 | -10/Materials | Entered Mines 891 | -10/Mines | Found a hidden stash of uninstalled traps 968 | -10/Mines | Deemed a non-threat by the Exiles lab entrance 968 | -10/Mines | Discovered new exit (range 5) 973 | -10/Mines | Entered Exiles 973 | -10/Exiles | Found Exiles lab destroyed 1128 | -10/Exiles | Learned location of Zion (-6) 1189 | -10/Exiles | Discovered new exit (range 10) 1201 | -10/Exiles | Identified exit to Mines 1385 | -10/Exiles | Build established: Scavenger-Mutant 1819 | -10/Exiles | Discovered exit to Mines (range 14) 2009 | -10/Exiles | Opened EX-Vault 2022 | -10/Exiles | Found AWS/Gauss 2152 | -10/Exiles | Entered Mines 2152 | -9/Mines | Accompanied by 3 allies 2310 | -9/Mines | Met a Derelict shopkeep closing up shop 2336 | -9/Mines | Build established: Mutant 2369 | -9/Mines | Assembled infested the area 2375 | -9/Mines | Learned Materials terminal intel 2421 | -9/Mines | Lost 3 allies 2451 | -9/Mines | Core integrity fell below 50% 2475 | -9/Mines | Destroyed 16 combat bots 2554 | -9/Mines | Discovered new exit (range 6) 2559 | -9/Mines | Identified exit to Materials 2676 | -9/Mines | Discovered exit to Materials (range 13) 2736 | -9/Mines | Entered Materials 2736 | -8/Materials | Evolved 4 slots: Propulsion x1, Utility x2, Weapon x1 2737 | -8/Materials | Loaded intel: 12 terminal locations 2793 | -8/Materials | Repaired Mak. Leg 3300 | -8/Materials | Identified exit to Factory 3601 | -8/Materials | Central database locked down 3702 | -8/Materials | Identified exit to Garrison 3702 | -8/Materials | Entered Garrison 3714 | -8/Garrison | Triggered checkpoint 3751 | -8/Garrison | Triggered checkpoint 3788 | -8/Garrison | Triggered checkpoint 3795 | -8/Garrison | Garrison Relay disabled 3859 | -8/Garrison | Discovered new exit (range 10) 3869 | -8/Garrison | Identified exit to Materials 3978 | -8/Garrison | Destroyed 14 combat bots 4008 | -8/Garrison | Triggered checkpoint 4083 | -8/Garrison | Garrison Relay disabled 4168 | -8/Garrison | Discovered exit to Materials (range 15) 4215 | -8/Garrison | Installed Relay Interface Framework 4455 | -8/Garrison | Discovered exit to Materials (range 8) 4528 | -8/Garrison | Triggered checkpoint 4544 | -8/Garrison | AWS/Gauss suddenly broke down 4575 | -8/Garrison | Entered Materials 5159 | -8/Materials | Build established: Bothacker-Mutant 5671 | -8/Materials | Discovered exit to Factory (range 8) 5685 | -8/Materials | Entered Factory 5685 | -7/Factory | Evolved 2 slots: Utility x2 5832 | -7/Factory | Identified exit to DSF 5832 | -7/Factory | Entered DSF 5881 | -7/DSF | Additional patrols routed to DSF 5914 | -7/DSF | Crushed by falling debris 5936 | -7/DSF | Core integrity fell below 50% 5991 | -7/DSF | Lost 10 parts (3n2u5w) 6057 | -7/DSF | Core integrity fell below 20% 6162 | -7/DSF | Sterilization system engaged 6163 | -7/DSF | Destroyed by G-47 Trooper with Particle Gun Last Messages --------------- rejected. 06139_ Acquired Imp. Heavy Laser. 06140_ The unstable cave ceiling collapses. 06140_ Penetrated by Slug. 06146_ Mic. Nuclear Core destroyed. 06149_ Penetrated by Slug. 06150_ Acquired 7 matter. 06153_ Imp. Heavy Laser destroyed. 06153_ Knocked back. 06154_ C-30 ARC bursts open, deploying its payload. 06154_ L-41 Fighter unfolds itself. 06154_ G-47 Trooper unfolds itself. 06156_ The unstable cave ceiling collapses. 06157_ System corrupted: Substantial component data lost. 06162_ ALERT: Persistent threat exposed, engaging DSF rapid sterilization system. [Achievement: Hot Goods] 06163_ Critical hit (Burn: +37). Map ----- +----------------------------------------------------+ | ???????????????????????????????????? | | ???????????????????????????????????? | | ???????????????????????????????????? | | ???????????????????????????????????? | | ???????????????????????????????????? | | ???????????????????????????????????? | | ???????????????????????????????????? | | ???????????????????????????????????? | | ???????????????????????????????????? | | ???????????????????????????????????? | | ???????????????????????????????????? | | ???????????????????????????????????? | | ????????????????????#??????????????? | | ??????????????????# !!????????????? | | ??????######?######## ??????#???###? | | ??????#!! #?[[[# %" # ??#]]?# | | ??????#!! ##[[ "## ???]]# | | ??????# g % % ????? | | ?????## g g H ??????? | | ?????#; % !% ????????? | | ?????## % "; [[[ # ????????? | | ?????## #; [[[ ## #????????? | | ??????### #;;#?????### ##?###???# | | ???????# #??????#!! !!?# #???# | | ???????# #??????#!! !??# ###?# | | ???????# @ #???????!! !??# #?# | | ???????## ###??????### #### [ ### | | ???????#! !!#??????#[[ " *%% + | | ???????#! !!#??????#[[ ######## | | ???????## ##########[[ #???#??# | | ??????### [###!!# ### ="##[??#[?? | | ?????##"" !%##!!# ### ###[[[#[[# | | ????""""" * % | | ????"##"" % | | ??????#"""""##!!# #// #[[[# # | | ??????#"""""#########//% #?#####? | | ??????####"##???????#####"###??????? | | ?????????#"#????????????###????????? | | ?????????""#???????????????????????? | | ???????????????????????????????????? | | ???????????????????????????????????? | | ???????????????????????????????????? | | ???????????????????????????????????? | | ???????????????????????????????????? | | | | | | | | | | | | | +----------------------------------------------------+ Best States ------------- Heat Dissipation 48 Energy Generation 18 Energy Capacity 300 Matter Stores 300 Matter Capacity 300 Sight Range 16 Robot Scan Range 15 Terrain Scan Density 10 Armor Coverage 225 Evasion (%) 55 Offensive Hacking 10 Relay Coupler Types 1 Relay Coupler Value 21 Authchip Count 1 Item Schematics ----------------- Imp. Hover Unit | -8/Materials | Hacked Robot Schematics ------------------ None Fabricated ------------ Nothing Repaired ---------- Mak. Leg | 5% | -8/Materials Studied --------- Carbon-fiber Leg | -8/Materials | Hacked Alien Tech Used ----------------- None Achievements -------------- Drive-By Hot Goods Join The Dark Side Luggage Code Mindtrick Challenges ------------ None Game ------ Seed HardlightTowerTearclaws Manual? 0 Play Time 01:49:25 Cumulative 12.7 hours Start 2026.04.21 @ 20:25:47 End 2026.04.22 @ 15:14:51 Sessions 3 Manual Loads 0 Difficulty Rogue Special Mode None Game No. 19 Rogue 19 Adventurer 0 Explorer 0 Win Type - Total 0 Types 0/0/0/0/0/0/0/0/0/0 Lore% 12 Gallery% 21 Achievement% 20 Wizard Run 0 Options --------- Layout 1 ASCII 0 Keyboard 0 Movement Mouse Keybinds 0 Fullscreen 2 Font 24/Smallcaps Map View 50x35 Zoom Use 1% Tactical HUD 1 Map Filters NONE Filters NONE Steam 1 RUN: 5796d449-9788-4bf2-9391-33e2f505d1a7